[Event "Titled Tuesday Blitz November 29 Late 2022"]
[White "Weisz, Bryan"]
[Black "Droin, Augustin"]
[WhiteFideId "30934133"]
[BlackFideId "45105987"]
[WhiteElo "2284"]
[BlackElo "2316"]
[Result "1-0"]
[Round "04"]
[TimeControl "180+1"]
[Date "2022.11.30"]
[WhiteClock "0:00:13"]
[BlackClock "0:01:24"]

1. e4 {[%clk 0:03:00]}  c5 {[%clk 0:02:58]} 2. Nf3 {[%clk 0:03:00]}  d6 {[%clk 0:02:57]} 3. d4 {[%clk 0:03:01]}  cxd4 {[%clk 0:02:58]} 4. Nxd4 {[%clk 0:03:01]}  Nf6 {[%clk 0:02:59]} 5. Nc3 {[%clk 0:02:58]}  e5 {[%clk 0:02:59]} 6. Bb5+ {[%clk 0:02:57]}  Nbd7 {[%clk 0:02:58]} 7. Nf5 {[%clk 0:02:56]}  a6 {[%clk 0:02:56]} 8. Ba4 {[%clk 0:02:48]}  b5 {[%clk 0:02:54]} 9. Bb3 {[%clk 0:02:49]}  Nc5 {[%clk 0:02:55]} 10. Bg5 {[%clk 0:02:43]}  Bxf5 {[%clk 0:02:55]} 11. exf5 {[%clk 0:02:43]}  Be7 {[%clk 0:02:55]} 12. Nd5 {[%clk 0:02:34]}  Nxd5 {[%clk 0:02:53]} 13. Qxd5 {[%clk 0:02:29]}  O-O {[%clk 0:02:49]} 14. Bxe7 {[%clk 0:02:25]}  Qxe7 {[%clk 0:02:50]} 15. O-O-O {[%clk 0:02:22]}  Rfd8 {[%clk 0:02:38]} 16. Kb1 {[%clk 0:02:19]}  a5 {[%clk 0:02:38]} 17. c3 {[%clk 0:02:17]}  Rab8 {[%clk 0:02:33]} 18. g4 {[%clk 0:02:10]}  a4 {[%clk 0:02:30]} 19. Bc2 {[%clk 0:02:10]}  b4 {[%clk 0:02:30]} 20. cxb4 {[%clk 0:02:07]}  Rxb4 {[%clk 0:02:31]} 21. Rhg1 {[%clk 0:01:58]}  Rdb8 {[%clk 0:02:30]} 22. Ka1 {[%clk 0:01:22]}  Rxb2 {[%clk 0:02:29]} 23. Rb1 {[%clk 0:01:16]}  Rxb1+ {[%clk 0:02:28]} 24. Rxb1 {[%clk 0:01:16]}  Rxb1+ {[%clk 0:02:28]} 25. Kxb1 {[%clk 0:01:12]}  Qd8 {[%clk 0:02:21]} 26. g5 {[%clk 0:00:57]}  h6 {[%clk 0:02:06]} 27. g6 {[%clk 0:00:53]}  Qe8 {[%clk 0:01:55]} 28. Qxd6 {[%clk 0:00:38]}  Qf8 {[%clk 0:01:53]} 29. gxf7+ {[%clk 0:00:30]}  Kxf7 {[%clk 0:01:49]} 30. Qxe5 {[%clk 0:00:30]}  Kg8 {[%clk 0:01:44]} 31. Be4 {[%clk 0:00:22]}  a3 {[%clk 0:01:35]} 32. Bd5+ {[%clk 0:00:23]}  Kh8 {[%clk 0:01:35]} 33. Ka1 {[%clk 0:00:17]}  Nd7 {[%clk 0:01:33]} 34. Qe6 {[%clk 0:00:15]}  Qb8 {[%clk 0:01:25]} 35. Bb3 {[%clk 0:00:12]}  Nc5 {[%clk 0:01:22]} 36. Qe3 {[%clk 0:00:08]}  Nxb3+ {[%clk 0:01:21]} 37. axb3 {[%clk 0:00:08]}  Qc8 {[%clk 0:01:19]} 38. Ka2 {[%clk 0:00:08]}  Qxf5 {[%clk 0:01:19]} 39. Kxa3 {[%clk 0:00:09]}  Qh5 {[%clk 0:01:16]} 40. h3 {[%clk 0:00:08]}  Qa5+ {[%clk 0:01:16]} 41. Kb2 {[%clk 0:00:09]}  h5 {[%clk 0:01:16]} 42. Qc3 {[%clk 0:00:09]}  Qf5 {[%clk 0:01:14]} 43. Qe3 {[%clk 0:00:09]}  g5 {[%clk 0:01:14]} 44. Qe8+ {[%clk 0:00:09]}  Kg7 {[%clk 0:01:14]} 45. Qxh5 {[%clk 0:00:09]}  Qxf2+ {[%clk 0:01:14]} 46. Kc3 {[%clk 0:00:10]}  Qc5+ {[%clk 0:01:14]} 47. Kb2 {[%clk 0:00:10]}  Qe5+ {[%clk 0:01:15]} 48. Kc2 {[%clk 0:00:09]}  Qf4 {[%clk 0:01:15]} 49. Qg4 {[%clk 0:00:09]}  Qf2+ {[%clk 0:01:16]} 50. Kc3 {[%clk 0:00:09]}  Kf6 {[%clk 0:01:16]} 51. Qd4+ {[%clk 0:00:09]}  Qxd4+ {[%clk 0:01:16]} 52. Kxd4 {[%clk 0:00:10]}  Kf5 {[%clk 0:01:17]} 53. b4 {[%clk 0:00:10]}  Kf4 {[%clk 0:01:18]} 54. b5 {[%clk 0:00:11]}  Kg3 {[%clk 0:01:19]} 55. b6 {[%clk 0:00:11]}  Kxh3 {[%clk 0:01:20]} 56. b7 {[%clk 0:00:12]}  g4 {[%clk 0:01:21]} 57. b8=Q {[%clk 0:00:12]}  g3 {[%clk 0:01:22]} 58. Qh8+ {[%clk 0:00:12]}  Kg2 {[%clk 0:01:22]} 59. Ke3 {[%clk 0:00:13]}  Kf1 {[%clk 0:01:22]} 60. Qf6+ {[%clk 0:00:13]}  Kg1 {[%clk 0:01:22]} 61. Kf3 {[%clk 0:00:12]}  g2 {[%clk 0:01:23]} 62. Qa1+ {[%clk 0:00:12]}  Kh2 {[%clk 0:01:23]} 63. Qb2 {[%clk 0:00:12]}  Kh3 {[%clk 0:01:23]} 64. Qxg2+ {[%clk 0:00:13]}  Kh4 {[%clk 0:01:24]} 65. Qg4# {[%clk 0:00:13]} 1-0


[Site "https://www.chess.com"]

[Event "Titled Tuesday Blitz November 29 Late 2022"]
[White "Wieczorek, Zbigniew"]
[Black "Mladenovic, Stefan"]
[WhiteFideId "1102001"]
[BlackFideId "942227"]
[WhiteElo "2321"]
[BlackElo "2337"]
[Result "0-1"]
[Round "04"]
[TimeControl "180+1"]
[Date "2022.11.30"]
[WhiteClock "0:00:02"]
[BlackClock "0:01:59"]

1. Nf3 {[%clk 0:03:00]}  Nf6 {[%clk 0:02:59]} 2. c4 {[%clk 0:02:59]}  e6 {[%clk 0:02:59]} 3. Nc3 {[%clk 0:02:57]}  d5 {[%clk 0:02:57]} 4. d4 {[%clk 0:02:57]}  Bb4 {[%clk 0:02:57]} 5. e3 {[%clk 0:02:52]}  O-O {[%clk 0:02:56]} 6. cxd5 {[%clk 0:02:47]}  exd5 {[%clk 0:02:53]} 7. Bd2 {[%clk 0:02:47]}  c6 {[%clk 0:02:49]} 8. Bd3 {[%clk 0:02:47]}  Bg4 {[%clk 0:02:47]} 9. h3 {[%clk 0:02:46]}  Bh5 {[%clk 0:02:47]} 10. Ne2 {[%clk 0:02:37]}  Bd6 {[%clk 0:02:45]} 11. Qc2 {[%clk 0:02:28]}  Qe7 {[%clk 0:02:41]} 12. g4 {[%clk 0:02:10]}  Bg6 {[%clk 0:02:37]} 13. Bxg6 {[%clk 0:01:58]}  hxg6 {[%clk 0:02:38]} 14. Nc3 {[%clk 0:01:57]}  Ne4 {[%clk 0:02:36]} 15. h4 {[%clk 0:01:38]}  Nd7 {[%clk 0:02:34]} 16. Nxe4 {[%clk 0:01:32]}  dxe4 {[%clk 0:02:34]} 17. Ng5 {[%clk 0:01:32]}  Nf6 {[%clk 0:02:33]} 18. h5 {[%clk 0:01:17]}  Nxg4 {[%clk 0:02:32]} 19. Nxe4 {[%clk 0:01:13]}  gxh5 {[%clk 0:02:14]} 20. Rxh5 {[%clk 0:01:06]}  g6 {[%clk 0:02:14]} 21. Rh1 {[%clk 0:00:39]}  Bb4 {[%clk 0:02:08]} 22. Rg1 {[%clk 0:00:11]}  Bxd2+ {[%clk 0:02:05]} 23. Kxd2 {[%clk 0:00:07]}  f5 {[%clk 0:02:02]} 24. Nc5 {[%clk 0:00:02]}  Kg7 {[%clk 0:01:59]} 0-1


[Site "https://www.chess.com"]

[Event "Titled Tuesday Blitz November 29 Late 2022"]
[White "Yanchenko, Roman"]
[Black "Abasov, Nijat"]
[WhiteFideId "4137329"]
[BlackFideId "13402960"]
[WhiteElo "2489"]
[BlackElo "2546"]
[Result "1/2-1/2"]
[Round "04"]
[TimeControl "180+1"]
[Date "2022.11.30"]
[WhiteClock "0:00:40"]
[BlackClock "0:00:16"]

1. d4 {[%clk 0:03:00]}  Nf6 {[%clk 0:02:53]} 2. c4 {[%clk 0:03:00]}  e6 {[%clk 0:02:53]} 3. Nf3 {[%clk 0:03:00]}  b6 {[%clk 0:02:53]} 4. e3 {[%clk 0:03:00]}  Bb7 {[%clk 0:02:54]} 5. Be2 {[%clk 0:03:00]}  Be7 {[%clk 0:02:53]} 6. O-O {[%clk 0:03:00]}  O-O {[%clk 0:02:53]} 7. b3 {[%clk 0:03:00]}  c5 {[%clk 0:02:53]} 8. dxc5 {[%clk 0:02:59]}  bxc5 {[%clk 0:02:51]} 9. Bb2 {[%clk 0:03:00]}  d6 {[%clk 0:02:52]} 10. Nc3 {[%clk 0:02:59]}  Nc6 {[%clk 0:02:45]} 11. Qd2 {[%clk 0:02:56]}  a6 {[%clk 0:02:42]} 12. Rfd1 {[%clk 0:02:53]}  Qc7 {[%clk 0:02:43]} 13. Bd3 {[%clk 0:02:44]}  Rfd8 {[%clk 0:02:42]} 14. Ne4 {[%clk 0:02:43]}  Ne8 {[%clk 0:02:27]} 15. Qe2 {[%clk 0:02:30]}  h6 {[%clk 0:02:24]} 16. Ng3 {[%clk 0:02:29]}  Bf6 {[%clk 0:02:17]} 17. Nh5 {[%clk 0:02:24]}  Bxb2 {[%clk 0:02:17]} 18. Qxb2 {[%clk 0:02:25]}  Qe7 {[%clk 0:02:06]} 19. Rd2 {[%clk 0:02:23]}  Rd7 {[%clk 0:01:53]} 20. Rad1 {[%clk 0:02:20]}  Rad8 {[%clk 0:01:54]} 21. h3 {[%clk 0:02:15]}  g6 {[%clk 0:01:46]} 22. Nf4 {[%clk 0:02:08]}  Qf6 {[%clk 0:01:47]} 23. Qxf6 {[%clk 0:01:51]}  Nxf6 {[%clk 0:01:47]} 24. Bb1 {[%clk 0:01:41]}  Kf8 {[%clk 0:01:39]} 25. Ne2 {[%clk 0:01:29]}  Ke7 {[%clk 0:01:38]} 26. Nc3 {[%clk 0:01:29]}  Na7 {[%clk 0:01:32]} 27. Ne1 {[%clk 0:01:28]}  Bc6 {[%clk 0:01:30]} 28. Nd3 {[%clk 0:01:27]}  Rb8 {[%clk 0:01:12]} 29. f3 {[%clk 0:01:26]}  Nc8 {[%clk 0:01:02]} 30. Kf2 {[%clk 0:01:19]}  a5 {[%clk 0:00:59]} 31. Bc2 {[%clk 0:01:19]}  Ne8 {[%clk 0:00:49]} 32. a4 {[%clk 0:01:16]}  Rdb7 {[%clk 0:00:48]} 33. Nb5 {[%clk 0:01:14]}  Bxb5 {[%clk 0:00:48]} 34. axb5 {[%clk 0:01:11]}  Nb6 {[%clk 0:00:48]} 35. Nb2 {[%clk 0:01:07]}  Ra7 {[%clk 0:00:45]} 36. Na4 {[%clk 0:01:03]}  Nxa4 {[%clk 0:00:42]} 37. bxa4 {[%clk 0:01:04]}  Rd7 {[%clk 0:00:39]} 38. f4 {[%clk 0:01:04]}  Nc7 {[%clk 0:00:39]} 39. Be4 {[%clk 0:01:03]}  Rdd8 {[%clk 0:00:35]} 40. Bc6 {[%clk 0:01:02]}  Na8 {[%clk 0:00:34]} 41. Bxa8 {[%clk 0:01:00]}  Rxa8 {[%clk 0:00:35]} 42. e4 {[%clk 0:01:01]}  Rab8 {[%clk 0:00:35]} 43. Ke3 {[%clk 0:01:01]}  f6 {[%clk 0:00:27]} 44. e5 {[%clk 0:00:58]}  dxe5 {[%clk 0:00:20]} 45. fxe5 {[%clk 0:00:58]}  f5 {[%clk 0:00:17]} 46. Rxd8 {[%clk 0:00:45]}  Rxd8 {[%clk 0:00:16]} 47. Rxd8 {[%clk 0:00:46]}  Kxd8 {[%clk 0:00:17]} 48. Kf4 {[%clk 0:00:44]}  g5+ {[%clk 0:00:16]} 49. Kf3 {[%clk 0:00:43]}  Kc7 {[%clk 0:00:17]} 50. h4 {[%clk 0:00:37]}  g4+ {[%clk 0:00:13]} 51. Kg3 {[%clk 0:00:36]}  Kb6 {[%clk 0:00:13]} 52. h5 {[%clk 0:00:36]}  Kc7 {[%clk 0:00:13]} 53. Kf4 {[%clk 0:00:37]}  Kb6 {[%clk 0:00:14]} 54. g3 {[%clk 0:00:37]}  Kc7 {[%clk 0:00:14]} 55. Ke3 {[%clk 0:00:38]}  Kb6 {[%clk 0:00:15]} 56. Kf4 {[%clk 0:00:39]}  Kc7 {[%clk 0:00:15]} 57. Ke3 {[%clk 0:00:39]}  Kb6 {[%clk 0:00:16]} 58. Kf4 {[%clk 0:00:40]} 1/2-1/2


[Site "https://www.chess.com"]

[Event "Titled Tuesday Blitz November 29 Late 2022"]
[White "Yi, Richard"]
[Black "Caruana, Fabiano"]
[WhiteFideId "2079518"]
[BlackFideId "2020009"]
[WhiteElo "2147"]
[BlackElo "2847"]
[Result "0-1"]
[Round "04"]
[TimeControl "180+1"]
[Date "2022.11.30"]
[WhiteClock "0:00:02"]
[BlackClock "0:00:34"]

1. d4 {[%clk 0:02:56]}  d6 {[%clk 0:02:59]} 2. e4 {[%clk 0:02:54]}  g6 {[%clk 0:02:59]} 3. Nc3 {[%clk 0:02:54]}  Bg7 {[%clk 0:02:59]} 4. f4 {[%clk 0:02:48]}  c6 {[%clk 0:02:59]} 5. Nf3 {[%clk 0:02:48]}  b5 {[%clk 0:02:59]} 6. Bd3 {[%clk 0:02:46]}  Nd7 {[%clk 0:02:59]} 7. O-O {[%clk 0:02:46]}  b4 {[%clk 0:02:55]} 8. Ne2 {[%clk 0:02:45]}  Ngf6 {[%clk 0:02:55]} 9. e5 {[%clk 0:02:43]}  Nd5 {[%clk 0:02:55]} 10. c4 {[%clk 0:02:25]}  bxc3 {[%clk 0:02:55]} 11. bxc3 {[%clk 0:02:26]}  O-O {[%clk 0:02:55]} 12. Qe1 {[%clk 0:02:22]}  a5 {[%clk 0:02:54]} 13. Rb1 {[%clk 0:02:17]}  N7b6 {[%clk 0:02:50]} 14. a3 {[%clk 0:02:12]}  Ba6 {[%clk 0:02:49]} 15. Bxa6 {[%clk 0:01:57]}  Rxa6 {[%clk 0:02:50]} 16. Ng3 {[%clk 0:01:57]}  Nc4 {[%clk 0:02:43]} 17. Qe2 {[%clk 0:01:52]}  Rb6 {[%clk 0:02:43]} 18. Rxb6 {[%clk 0:01:39]}  Ndxb6 {[%clk 0:02:44]} 19. f5 {[%clk 0:01:25]}  dxe5 {[%clk 0:02:42]} 20. dxe5 {[%clk 0:01:24]}  Qd5 {[%clk 0:02:41]} 21. Re1 {[%clk 0:01:21]}  Rd8 {[%clk 0:02:32]} 22. Bg5 {[%clk 0:01:20]}  Qc5+ {[%clk 0:02:23]} 23. Kh1 {[%clk 0:01:17]}  h6 {[%clk 0:01:53]} 24. Bc1 {[%clk 0:01:11]}  Bxe5 {[%clk 0:01:43]} 25. fxg6 {[%clk 0:01:00]}  fxg6 {[%clk 0:01:39]} 26. Bxh6 {[%clk 0:00:52]}  Qd5 {[%clk 0:01:27]} 27. Ne4 {[%clk 0:00:42]}  Bh8 {[%clk 0:01:15]} 28. Neg5 {[%clk 0:00:36]}  Bf6 {[%clk 0:01:12]} 29. Ne6 {[%clk 0:00:33]}  Rd6 {[%clk 0:01:10]} 30. Nf4 {[%clk 0:00:32]}  Qf5 {[%clk 0:01:07]} 31. Nh4 {[%clk 0:00:31]}  Bxh4 {[%clk 0:01:06]} 32. Rf1 {[%clk 0:00:19]}  Bf6 {[%clk 0:01:05]} 33. g4 {[%clk 0:00:15]}  Qd7 {[%clk 0:00:57]} 34. Nxg6 {[%clk 0:00:14]}  Re6 {[%clk 0:00:54]} 35. Qc2 {[%clk 0:00:05]}  Qd5+ {[%clk 0:00:47]} 36. Kg1 {[%clk 0:00:05]}  Qe4 {[%clk 0:00:47]} 37. Qd1 {[%clk 0:00:03]}  Qxg6 {[%clk 0:00:40]} 38. g5 {[%clk 0:00:04]}  Nd6 {[%clk 0:00:36]} 39. Kh1 {[%clk 0:00:03]}  Bg7 {[%clk 0:00:35]} 40. Qf3 {[%clk 0:00:02]}  Qe4 {[%clk 0:00:34]} 0-1


[Site "https://www.chess.com"]

[Event "Titled Tuesday Blitz November 29 Late 2022"]
[White "Yoo, Christopher Woojin"]
[Black "Khandelwal, Ankush"]
[WhiteFideId "30909694"]
[BlackFideId "413470"]
[WhiteElo "2463"]
[BlackElo "2271"]
[Result "1-0"]
[Round "04"]
[TimeControl "180+1"]
[Date "2022.11.30"]
[WhiteClock "0:00:02"]
[BlackClock "0:00:01"]

1. c4 {[%clk 0:03:00]}  Nf6 {[%clk 0:03:00]} 2. Nc3 {[%clk 0:02:57]}  g6 {[%clk 0:02:59]} 3. g3 {[%clk 0:02:57]}  Bg7 {[%clk 0:02:59]} 4. Bg2 {[%clk 0:02:58]}  O-O {[%clk 0:02:59]} 5. e4 {[%clk 0:02:59]}  d6 {[%clk 0:03:00]} 6. Nge2 {[%clk 0:02:59]}  c5 {[%clk 0:02:55]} 7. O-O {[%clk 0:03:00]}  Nc6 {[%clk 0:02:55]} 8. d3 {[%clk 0:03:00]}  a6 {[%clk 0:02:53]} 9. Be3 {[%clk 0:02:59]}  Rb8 {[%clk 0:02:52]} 10. a4 {[%clk 0:02:43]}  e5 {[%clk 0:02:49]} 11. f4 {[%clk 0:02:38]}  Nd4 {[%clk 0:02:36]} 12. h3 {[%clk 0:02:32]}  Nh5 {[%clk 0:02:22]} 13. Kh2 {[%clk 0:02:31]}  exf4 {[%clk 0:02:06]} 14. gxf4 {[%clk 0:02:29]}  Nxe2 {[%clk 0:01:59]} 15. Qxe2 {[%clk 0:02:30]}  Bd7 {[%clk 0:01:54]} 16. Bf3 {[%clk 0:02:20]}  Qh4 {[%clk 0:01:47]} 17. Bxh5 {[%clk 0:02:12]}  Qxh3+ {[%clk 0:01:46]} 18. Kg1 {[%clk 0:02:12]}  gxh5 {[%clk 0:01:39]} 19. Rf3 {[%clk 0:02:11]}  Qh4 {[%clk 0:01:33]} 20. Qg2 {[%clk 0:01:57]}  Kh8 {[%clk 0:01:30]} 21. Bf2 {[%clk 0:01:52]}  Bd4 {[%clk 0:01:30]} 22. Ne2 {[%clk 0:01:18]}  Rg8 {[%clk 0:01:02]} 23. Rg3 {[%clk 0:01:18]}  Rxg3 {[%clk 0:00:57]} 24. Bxd4+ {[%clk 0:00:35]}  cxd4 {[%clk 0:00:56]} 25. Nxg3 {[%clk 0:00:35]}  Rg8 {[%clk 0:00:55]} 26. Kf2 {[%clk 0:00:35]}  Qxf4+ {[%clk 0:00:54]} 27. Qf3 {[%clk 0:00:36]}  Qd2+ {[%clk 0:00:32]} 28. Ne2 {[%clk 0:00:32]}  Qg5 {[%clk 0:00:26]} 29. Rg1 {[%clk 0:00:22]}  Bg4 {[%clk 0:00:25]} 30. Qf4 {[%clk 0:00:21]}  Qh4+ {[%clk 0:00:23]} 31. Rg3 {[%clk 0:00:19]}  Qh2+ {[%clk 0:00:21]} 32. Rg2 {[%clk 0:00:19]}  Qh4+ {[%clk 0:00:16]} 33. Ng3 {[%clk 0:00:19]}  Qe7 {[%clk 0:00:13]} 34. Rh2 {[%clk 0:00:10]}  Rg6 {[%clk 0:00:12]} 35. Nxh5 {[%clk 0:00:10]}  Qe6 {[%clk 0:00:04]} 36. Rh4 {[%clk 0:00:04]}  b5 {[%clk 0:00:02]} 37. axb5 {[%clk 0:00:04]}  axb5 {[%clk 0:00:03]} 38. cxb5 {[%clk 0:00:04]}  Bd1 {[%clk 0:00:02]} 39. Ng3 {[%clk 0:00:03]}  Qb3 {[%clk 0:00:02]} 40. Qd2 {[%clk 0:00:03]}  Bc2 {[%clk 0:00:02]} 41. Nf5 {[%clk 0:00:02]}  Bxd3 {[%clk 0:00:01]} 42. Nxd4 {[%clk 0:00:02]} 1-0


[Site "https://www.chess.com"]

[Event "Titled Tuesday Blitz November 29 Late 2022"]
[White "chess50years"]
[Black "Haszon, David"]
[BlackFideId "733610"]
[WhiteElo "2145"]
[BlackElo "2211"]
[Result "0-1"]
[Round "04"]
[TimeControl "180+1"]
[Date "2022.11.30"]
[WhiteClock "0:00:15"]
[BlackClock "0:00:53"]

1. d4 {[%clk 0:03:00]}  Nf6 {[%clk 0:02:56]} 2. c4 {[%clk 0:03:00]}  c5 {[%clk 0:02:55]} 3. d5 {[%clk 0:02:59]}  b5 {[%clk 0:02:53]} 4. cxb5 {[%clk 0:02:59]}  a6 {[%clk 0:02:52]} 5. bxa6 {[%clk 0:02:57]}  d6 {[%clk 0:02:50]} 6. Nc3 {[%clk 0:02:55]}  g6 {[%clk 0:02:48]} 7. e4 {[%clk 0:02:46]}  Qa5 {[%clk 0:02:44]} 8. Bd2 {[%clk 0:02:34]}  Nxa6 {[%clk 0:02:29]} 9. Bb5+ {[%clk 0:02:20]}  Bd7 {[%clk 0:02:28]} 10. Bxd7+ {[%clk 0:02:17]}  Nxd7 {[%clk 0:02:29]} 11. Nf3 {[%clk 0:02:13]}  Bg7 {[%clk 0:02:27]} 12. O-O {[%clk 0:02:11]}  O-O {[%clk 0:02:27]} 13. Qe2 {[%clk 0:02:09]}  Rfb8 {[%clk 0:02:27]} 14. Rab1 {[%clk 0:02:04]}  Qc7 {[%clk 0:02:19]} 15. Nb5 {[%clk 0:01:50]}  Qb6 {[%clk 0:02:14]} 16. a4 {[%clk 0:01:50]}  Nc7 {[%clk 0:02:04]} 17. Nxc7 {[%clk 0:01:47]}  Qxc7 {[%clk 0:02:05]} 18. b3 {[%clk 0:01:40]}  Rb6 {[%clk 0:01:58]} 19. Bg5 {[%clk 0:01:34]}  Kf8 {[%clk 0:01:55]} 20. Nd2 {[%clk 0:01:32]}  Qb7 {[%clk 0:01:51]} 21. h3 {[%clk 0:01:22]}  Rb4 {[%clk 0:01:50]} 22. Be3 {[%clk 0:01:13]}  Nf6 {[%clk 0:01:39]} 23. f3 {[%clk 0:01:11]}  Nh5 {[%clk 0:01:39]} 24. Qd3 {[%clk 0:01:06]}  Ng3 {[%clk 0:01:20]} 25. Rfc1 {[%clk 0:01:03]}  Bf6 {[%clk 0:01:14]} 26. Rc4 {[%clk 0:00:57]}  Rb6 {[%clk 0:01:13]} 27. Bh6+ {[%clk 0:00:44]}  Kg8 {[%clk 0:01:12]} 28. Bf4 {[%clk 0:00:44]}  Nh5 {[%clk 0:01:12]} 29. Be3 {[%clk 0:00:41]}  Bg7 {[%clk 0:01:06]} 30. Qc2 {[%clk 0:00:37]}  Nf6 {[%clk 0:01:06]} 31. Bg5 {[%clk 0:00:35]}  h6 {[%clk 0:01:01]} 32. Be3 {[%clk 0:00:35]}  Nd7 {[%clk 0:01:00]} 33. f4 {[%clk 0:00:33]}  Rb4 {[%clk 0:00:56]} 34. Rxb4 {[%clk 0:00:31]}  Qxb4 {[%clk 0:00:57]} 35. Qc4 {[%clk 0:00:28]}  Qa5 {[%clk 0:00:57]} 36. Qb5 {[%clk 0:00:26]}  Qc3 {[%clk 0:00:53]} 37. Qc4 {[%clk 0:00:24]}  Qxe3+ {[%clk 0:00:53]} 38. Kh1 {[%clk 0:00:15]}  Qxd2 {[%clk 0:00:53]} 0-1


[Site "https://www.chess.com"]

[Event "Titled Tuesday Blitz November 29 Late 2022"]
[White "Abdrlauf, Elham"]
[Black "Albornoz Cabrera, Carlos Daniel"]
[WhiteFideId "1533533"]
[BlackFideId "3518736"]
[WhiteElo "2447"]
[BlackElo "2497"]
[Result "1-0"]
[Round "05"]
[TimeControl "180+1"]
[Date "2022.11.30"]
[WhiteClock "0:00:07"]
[BlackClock "0:00:08"]

1. e4 {[%clk 0:02:59]}  c5 {[%clk 0:03:00]} 2. Nf3 {[%clk 0:02:59]}  Nc6 {[%clk 0:03:00]} 3. d4 {[%clk 0:02:59]}  cxd4 {[%clk 0:03:00]} 4. Nxd4 {[%clk 0:03:00]}  Nf6 {[%clk 0:03:01]} 5. Nc3 {[%clk 0:03:00]}  e5 {[%clk 0:03:00]} 6. Nde2 {[%clk 0:03:00]}  Bc5 {[%clk 0:02:50]} 7. Ng3 {[%clk 0:02:59]}  d6 {[%clk 0:02:38]} 8. Na4 {[%clk 0:03:00]}  Bb4+ {[%clk 0:02:29]} 9. c3 {[%clk 0:03:00]}  Ba5 {[%clk 0:02:29]} 10. b4 {[%clk 0:03:00]}  Bc7 {[%clk 0:02:29]} 11. Bd3 {[%clk 0:02:54]}  O-O {[%clk 0:02:25]} 12. O-O {[%clk 0:02:54]}  d5 {[%clk 0:02:26]} 13. Bg5 {[%clk 0:02:52]}  d4 {[%clk 0:02:06]} 14. b5 {[%clk 0:02:47]}  Ne7 {[%clk 0:02:03]} 15. cxd4 {[%clk 0:02:17]}  Qxd4 {[%clk 0:02:02]} 16. Be3 {[%clk 0:02:18]}  Qd8 {[%clk 0:01:55]} 17. Rc1 {[%clk 0:02:10]}  Ng6 {[%clk 0:01:52]} 18. Qc2 {[%clk 0:01:48]}  Bd6 {[%clk 0:01:48]} 19. Rfd1 {[%clk 0:01:48]}  Qe7 {[%clk 0:01:34]} 20. b6 {[%clk 0:01:36]}  Ng4 {[%clk 0:01:23]} 21. Bc5 {[%clk 0:01:31]}  Nf4 {[%clk 0:01:12]} 22. Bf1 {[%clk 0:01:19]}  Bxc5 {[%clk 0:01:09]} 23. Qxc5 {[%clk 0:01:12]}  Qxc5 {[%clk 0:01:07]} 24. Rxc5 {[%clk 0:01:10]}  Ne6 {[%clk 0:00:52]} 25. Ra5 {[%clk 0:01:05]}  Nd4 {[%clk 0:00:41]} 26. h3 {[%clk 0:01:01]}  Nc6 {[%clk 0:00:39]} 27. Rc5 {[%clk 0:00:50]}  Nf6 {[%clk 0:00:39]} 28. Bb5 {[%clk 0:00:50]}  Nd4 {[%clk 0:00:16]} 29. Rxe5 {[%clk 0:00:51]}  Nxb5 {[%clk 0:00:16]} 30. Rxb5 {[%clk 0:00:52]}  Bd7 {[%clk 0:00:16]} 31. Rb4 {[%clk 0:00:51]}  Bxa4 {[%clk 0:00:16]} 32. Rxa4 {[%clk 0:00:52]}  axb6 {[%clk 0:00:17]} 33. Rxa8 {[%clk 0:00:49]}  Rxa8 {[%clk 0:00:18]} 34. e5 {[%clk 0:00:50]}  Ne8 {[%clk 0:00:18]} 35. Nf5 {[%clk 0:00:45]}  g6 {[%clk 0:00:16]} 36. Ne3 {[%clk 0:00:30]}  Nc7 {[%clk 0:00:07]} 37. Rd7 {[%clk 0:00:21]}  Ne6 {[%clk 0:00:08]} 38. Rxb7 {[%clk 0:00:22]}  Rxa2 {[%clk 0:00:08]} 39. Rxb6 {[%clk 0:00:23]}  h5 {[%clk 0:00:07]} 40. h4 {[%clk 0:00:22]}  Kg7 {[%clk 0:00:07]} 41. g3 {[%clk 0:00:19]}  Nd4 {[%clk 0:00:07]} 42. Kg2 {[%clk 0:00:15]}  Ra5 {[%clk 0:00:07]} 43. Rd6 {[%clk 0:00:14]}  Ne6 {[%clk 0:00:04]} 44. f4 {[%clk 0:00:12]}  Ra2+ {[%clk 0:00:04]} 45. Kf3 {[%clk 0:00:13]}  Ra3 {[%clk 0:00:05]} 46. Rd7 {[%clk 0:00:07]}  Nc5 {[%clk 0:00:05]} 47. Rd4 {[%clk 0:00:07]}  Ne6 {[%clk 0:00:05]} 48. Rd5 {[%clk 0:00:07]}  Nc7 {[%clk 0:00:05]} 49. Rd7 {[%clk 0:00:06]}  Ne6 {[%clk 0:00:06]} 50. Ke2 {[%clk 0:00:05]}  Ra2+ {[%clk 0:00:06]} 51. Rd2 {[%clk 0:00:03]}  Ra3 {[%clk 0:00:07]} 52. Kf2 {[%clk 0:00:03]}  Nc5 {[%clk 0:00:07]} 53. Re2 {[%clk 0:00:03]}  Ne4+ {[%clk 0:00:07]} 54. Kg2 {[%clk 0:00:03]}  Nc3 {[%clk 0:00:07]} 55. Rc2 {[%clk 0:00:03]}  Ne4 {[%clk 0:00:07]} 56. Nf1 {[%clk 0:00:04]}  Rd3 {[%clk 0:00:06]} 57. Re2 {[%clk 0:00:04]}  Nc5 {[%clk 0:00:06]} 58. Rd2 {[%clk 0:00:04]}  Rc3 {[%clk 0:00:06]} 59. Re2 {[%clk 0:00:04]}  Ra3 {[%clk 0:00:06]} 60. Nd2 {[%clk 0:00:04]}  Nd3 {[%clk 0:00:07]} 61. Ne4 {[%clk 0:00:03]}  Nc1 {[%clk 0:00:06]} 62. Rd2 {[%clk 0:00:03]}  Nd3 {[%clk 0:00:06]} 63. Ng5 {[%clk 0:00:03]}  Nc5 {[%clk 0:00:04]} 64. Rd5 {[%clk 0:00:03]}  Ra2+ {[%clk 0:00:04]} 65. Kf1 {[%clk 0:00:03]}  Nb3 {[%clk 0:00:02]} 66. Rd7 {[%clk 0:00:03]}  Nd2+ {[%clk 0:00:03]} 67. Ke1 {[%clk 0:00:03]}  Nc4 {[%clk 0:00:01]} 68. e6 {[%clk 0:00:03]}  Kg8 {[%clk 0:00:02]} 69. Rd8+ {[%clk 0:00:03]}  Kg7 {[%clk 0:00:02]} 70. exf7 {[%clk 0:00:03]}  Ra1+ {[%clk 0:00:01]} 71. Ke2 {[%clk 0:00:04]}  Ra2+ {[%clk 0:00:02]} 72. Kd3 {[%clk 0:00:03]}  Rd2+ {[%clk 0:00:02]} 73. Kxc4 {[%clk 0:00:04]}  Rxd8 {[%clk 0:00:03]} 74. Ne6+ {[%clk 0:00:05]}  Kxf7 {[%clk 0:00:04]} 75. Nxd8+ {[%clk 0:00:06]}  Kf6 {[%clk 0:00:05]} 76. Kd4 {[%clk 0:00:06]}  Kf5 {[%clk 0:00:06]} 77. Ke3 {[%clk 0:00:06]}  Kg4 {[%clk 0:00:07]} 78. Kf2 {[%clk 0:00:07]}  g5 {[%clk 0:00:08]} 79. fxg5 {[%clk 0:00:07]} 1-0


[Site "https://www.chess.com"]